Cogmind - Beta 10.1 *** ADVENTURER MODE // 2020.10.04 @ 00:06:48 Player: Turbografx16 Result: Self-destructed Performance ------------- Evolutions (1) 500 Regions Visited (4) 800 Robots Destroyed (48) 240 Value Destroyed (1467) 1467 Prototype IDs (6) 120 Alien Tech Used (0) 0 Bonus (160) 160 TOTAL SCORE: 3287 Bonus ------- High Alert Combat Kills 11 Follower Combat Kills 202 Friendly Fire -53 Cogmind --------- Core Integrity 66/400 Matter 189/300 Energy 280/280 System Corruption 0% Temperature Cool (0) Movement Treading (160) Location -9/Storage Parts ------- > --- POWER (1) -------- Heavy Ion Engine > --- PROPULSION (3) --- Light Treads Light Treads Light Treads > --- UTILITY (3) ------ Small Storage Unit Large Storage Unit Hacking Suite > --- WEAPON (2) ------- Heavy Assault Rifle Improved Heavy Machine Gun > --- INVENTORY (12) --- Medium Matter Pod (100) Autogun Autogun Autogun Rocket Launcher Mini Grenade Launcher Scatter Rocket Array Makeshift Sword Peak State ------------ > --- POWER ------------ Heavy Ion Engine > --- PROPULSION ------- Light Treads Light Treads Light Treads > --- UTILITY ---------- Small Storage Unit Large Storage Unit Hacking Suite > --- WEAPON ----------- Improved EM Shotgun Improved Heavy Machine Gun > --- INVENTORY -------- Light Treads Light Treads Medium Matter Pod EM Shotgun Heavy Assault Rifle Autogun Autogun Autogun Rocket Launcher Mini Grenade Launcher Scatter Rocket Array Makeshift Sword [Rating: 22] Favorites ----------- Power Light Ion Engine Engine Light Ion Engine Propulsion Light Treads Treads Light Treads Leg Aluminum Leg Utility Small Storage Unit Storage Small Storage Unit Hackware Hacking Suite Weapon EM Shotgun Energy Gun EM Shotgun Energy Cannon Advanced Beam Cannon Ballistic Gun Improved Heavy Machine Gun Launcher Scatter Rocket Array Build | -11 -10 -10 -9 -9 ------- Run | Scr Mat Min Mat Sto Slots Evolved 2 | . . . 2 . Power . | . . . . . Propulsion 1 | . . . 1 . Utility 1 | . . . 1 . Weapon . | . . . . . Parts Attached 38 | 2 3 1 12 20 Power 3 | . . 1 1 1 Engine 3 | . . 1 1 1 Core . | . . . . . Reactor . | . . . . . Propulsion 11 | . . . 6 5 Treads 11 | . . . 6 5 Leg . | . . . . . Wheel . | . . . . . Hover . | . . . . . Flight . | . . . . . Utility 2 | . 1 . 1 . Device . | . . . . . Storage 1 | . 1 . . . Processor . | . . . . . Hackware 1 | . . . 1 . Protection . | . . . . . Artifact . | . . . . . Weapon 22 | 2 2 . 4 14 Energy Gun 12 | . 2 . 3 7 Energy Cannon 1 | . . . . 1 Ballistic Gun 8 | 2 . . 1 5 Ballistic Cannon . | . . . . . Launcher 1 | . . . . 1 Special Weapon . | . . . . . Impact Weapon . | . . . . . Slashing Weapon . | . . . . . Piercing Weapon . | . . . . . Special Melee Weapon . | . . . . . Unidentified Prototypes 6 | . . . . 6 Parts Lost 10 | . . 1 5 4 Power 1 | . . . 1 . Propulsion 3 | . . . 2 1 Utility . | . . . . . Weapon 6 | . . 1 2 3 Highest Loss Streak 4 | . . 1 4 3 Average Slot Usage (%) 93 | . 96 93 74 98 Engine 12 | . 14 14 10 11 Treads 15 | . . . 18 33 Leg 13 | . 28 28 5 . Storage 24 | . 24 28 22 22 Hackware 4 | . . . . 11 Energy Gun 17 | . 17 22 12 15 Ballistic Gun 3 | . 10 . 3 5 Naked Turns . | . . . . . Heaviest Build 35 | 10 29 31 29 35 Greatest Support 60 | 20 20 20 60 60 Greatest Overweight (x) 2 | . 1 1 2 . Average Overweight (x) . | . . 1 . . Largest Inventory Capacity 12 | 6 12 12 12 12 Average Capacity 11 | 6 10 12 12 12 Most Carried 12 | 6 5 8 8 12 Average Carried 7 | 5 4 6 5 9 Final Capacity 12 | 6 12 12 12 12 Final Carried 8 | 3 5 8 6 8 Class Distribution -------------------- 58% | Mutant 26% | Commander-Mutant 8% | Hacker-Mutant 6% | Scavenger-Mutant Dominant Class ---------------- Mutant | -10/Materials Mutant | -10/Mines Mutant | -9/Materials Commander-Mutant | -9/Storage Resources | -11 -10 -10 -9 -9 ----------- Run | Scr Mat Min Mat Sto Matter Collected 674 | 200 78 10 155 231 Remotely . | . . . . . Salvage Created 1913 | . 143 459 508 803 Parts 97 | . 12 21 28 36 Haulers Intercepted 2 | . . . . 2 Recyclers Shooed . | . . . . . Parts Field Recycled . | . . . . . Retrieved Matter . | . . . . . Parts Self-Destructed . | . . . . . Prevented . | . . . . . Kills | -11 -10 -10 -9 -9 ------- Run | Scr Mat Min Mat Sto Combat Hostiles Destroyed 38 | . 6 8 9 15 Guns 33 | . 6 6 8 13 AOE 3 | . . 2 . 1 Classes Destroyed 9 | . 3 1 4 1 Hauler 2 | . . . . 2 Recycler 1 | . . 1 . . Mechanic 1 | . . . 1 . Operator 3 | . . . 2 1 Watcher 3 | . 1 . 1 1 Swarmer 7 | . 5 . . 2 Grunt 23 | . 1 8 6 8 Brawler 1 | . . . 1 . Sentry 7 | . . . 2 5 Best Kill Streak 7 | . 6 3 6 7 Combat Bots Only 7 | . 6 2 4 7 Max Kills in Single Turn 2 | . 2 1 2 2 Gunslinging 1 | . 1 . . . Exploded 1 | . . 1 . 1 Melee . | . . . . . Uniques/NPCs Destroyed . | . . . . . Combat | -11 -10 -10 -9 -9 -------- Run | Scr Mat Min Mat Sto Damage Taken 2272 | . 132 255 809 1076 Core 397 | . 38 25 116 218 Absorbed by Shields . | . . . . . Core Remaining (%) 87 | 100 . 74 . . Volleys Fired 109 | . 10 14 34 51 Largest 2 | . 2 2 2 2 Hottest 90 | . 90 90 90 90 Shots Fired 195 | . 20 27 54 94 Gun 195 | . 20 27 54 94 Cannon . | . . . . . Launcher . | . . . . . Special . | . . . . . Kinetic 73 | . 14 . 15 44 Thermal . | . . . . . Explosive . | . . . . . Electromagnetic 122 | . 6 27 39 50 Robot Hit Streak 70 | . 6 33 35 70 Robot Miss Streak 2 | . 2 1 1 1 Penetration Max . | . . . . . Secondary Targets 5 | . 1 . 2 2 Max Gunslinging Chain 1 | . 1 . 1 1 Shots Hit Robots 167 | . 14 25 47 81 Core Hits 93 | . 9 23 25 36 Critical Hits . | . . . . . Critical Kills . | . . . . . Critical Parts Destroyed . | . . . . . Melee Attacks . | . . . . . Impact . | . . . . . Slashing . | . . . . . Piercing . | . . . . . Sneak Attacks . | . . . . . Combat Hostiles . | . . . . . Follow-up Attacks . | . . . . . Damage Inflicted 3802 | . 181 625 1280 1716 Guns 2889 | . 181 436 812 1460 Cannons . | . . . . . Explosions 913 | . . 189 468 256 Melee . | . . . . . Ramming . | . . . . . Kinetic 898 | . 102 . 148 648 Thermal 913 | . . 189 468 256 Explosive . | . . . . . Electromagnetic 1991 | . 79 436 664 812 Impact . | . . . . . Slashing . | . . . . . Piercing . | . . . . . Highest Corruption . | . . . . . Average Corruption . | . . . . . Corruption Purged . | . . . . . Overload Shots . | . . . . . Overflow Damage 181 | . . 4 164 13 Projectiles . | . . . . . Explosions 181 | . . 4 164 13 Melee . | . . . . . Knockbacks . | . . . . . Impact . | . . . . . Kinetic . | . . . . . Secondary . | . . . . . Self-Inflicted Damage 391 | . . 119 207 65 Shots 10 | . . 3 3 4 Rammed . | . . . . . Targets Rammed . | . . . . . Kicked . | . . . . . Crushed . | . . . . . Highest Temperature 363 | . 30 159 63 363 Average Temperature 71 | . 18 70 15 104 Received Heat Transfer 906 | . 12 102 261 531 Siege Activations . | . . . . . Robots Corrupted 3 | . . . 1 2 Combat Hostiles 2 | . . . 1 1 Parts Fried 12 | . . 1 5 6 Impact Corruptions . | . . . . . Robots Melted . | . . . . . Combat Hostiles . | . . . . . Parts Melted . | . . . . . Heat Transferred 950 | . . 150 350 450 Parts Sabotaged . | . . . . . Parts Stolen . | . . . . . Parts Stripped . | . . . . . Power Chain Reactions 8 | . . 3 1 4 Missiles Intercepted . | . . . . . Alert | -11 -10 -10 -9 -9 ------- Run | Scr Mat Min Mat Sto Peak Influence 414 | . 211 219 258 414 Initial 69 | . . 69 . 38 Average 89 | . 133 59 80 112 Maximum Alert Level 2 | . 1 1 1 2 Low Security (%) 86 | 100 68 94 86 82 Level 1 13 | . 31 5 13 15 Level 2 . | . . . . 1 Level 3 . | . . . . . Level 4 . | . . . . . Level 5 . | . . . . . High Security . | . . . . . Max Security . | . . . . . Squads Dispatched 12 | . 1 . 3 8 Investigation 2 | . 1 . 1 . Extermination . | . . . . . Reinforcement 7 | . . . 2 5 Assault . | . . . . . Garrison 3 | . . . . 3 Intercept . | . . . . . Construction Impeded 1 | . . . . 1 Haulers Reinforced . | . . . . . Stealth | -11 -10 -10 -9 -9 --------- Run | Scr Mat Min Mat Sto Distress Signals 5 | . 1 . 2 2 Communications Jammed . | . . . . . Distress Signals . | . . . . . Times Spotted 65 | . 11 7 17 30 Peak Tracking Total 7 | . 7 2 3 7 Tactical Retreats 3 | . 1 1 1 . Traps | -11 -10 -10 -9 -9 ------- Run | Scr Mat Min Mat Sto Traps Triggered 5 | . 2 . 1 2 Indirectly . | . . . . . Trap Hack Attempts . | . . . . . Triggered . | . . . . . Disarmed . | . . . . . Reprogrammed . | . . . . . Reused . | . . . . . Traps Extracted . | . . . . . Installed . | . . . . . Triggered . | . . . . . Machines | -11 -10 -10 -9 -9 ---------- Run | Scr Mat Min Mat Sto Machines Disabled 8 | . . . 4 4 Max in Single Turn 4 | . . . 4 2 Machines Sabotaged . | . . . . . Garrisons Compromised . | . . . . . Overloaded Fab Kills . | . . . . . Fab Network Shutdowns . | . . . . . Hacking | -11 -10 -10 -9 -9 --------- Run | Scr Mat Min Mat Sto Machines Accessed 13 | . 3 . 3 7 Terminals 12 | . 3 . 3 6 Fabricators . | . . . . . Repair Stations 1 | . . . . 1 Recycling Units . | . . . . . Scanalyzers . | . . . . . Garrison Access . | . . . . . Total Hacks 27 | . 5 . 10 12 Successful 17 | . 4 . 5 8 Failed 10 | . 1 . 5 4 Catastrophic . | . . . . . Database Lockouts . | . . . . . Manual 21 | . 5 . 10 6 Terminals 25 | . 5 . 10 10 Fabricators . | . . . . . Repair Stations 2 | . . . . 2 Recycling Units . | . . . . . Scanalyzers . | . . . . . Garrison Access . | . . . . . Terminal Hacks 4 | . 1 . 1 2 Open Door 2 | . . . . 2 Branch Access Points 2 | . 1 . 1 . Fabricator Hacks . | . . . . . Repair Station Hacks 2 | . . . . 2 Scan Component 1 | . . . . 1 Repair 1 | . . . . 1 Recycling Unit Hacks . | . . . . . Scanalyzer . | . . . . . Garrison Access Hacks . | . . . . . Unauthorized Hacks 10 | . 3 . 3 4 Terminals 10 | . 3 . 3 4 Botnet 10 | . 3 . 3 4 Fabricators . | . . . . . Repair Stations . | . . . . . Recycling Units . | . . . . . Scanalyzers . | . . . . . Garrison Access . | . . . . . Data Cores Recovered . | . . . . . Used . | . . . . . Hacking Detections 10 | . 1 . 3 6 Full Trace Events . | . . . . . Feedback Events . | . . . . . Feedback Blocked . | . . . . . Robot Schematics Acquired . | . . . . . Robots Built . | . . . . . Matter . | . . . . . Time . | . . . . . Total Robot Build Rating . | . . . . . Part Schematics Acquired . | . . . . . Parts Built . | . . . . . Matter . | . . . . . Time . | . . . . . Total Part Build Rating . | . . . . . Parts Repaired 1 | . . . . 1 Time 32 | . . . . 32 Parts Recycled . | . . . . . Recycled Matter . | . . . . . Retrieved Matter . | . . . . . Retrieved Components . | . . . . . Parts Scanalyzed . | . . . . . Part Schematics Acquired . | . . . . . Parts Damaged . | . . . . . Bothacking | -11 -10 -10 -9 -9 ------------ Run | Scr Mat Min Mat Sto Used RIF Installer . | . . . . . Robots Hacked . | . . . . . Non-combat . | . . . . . Combat . | . . . . . Robot Hacks Applied . | . . . . . Relay Couplers Released . | . . . . . Robots Rewired . | . . . . . Allies Hacked . | . . . . . Hacks Repelled . | . . . . . Allies | -11 -10 -10 -9 -9 -------- Run | Scr Mat Min Mat Sto Total Allies 10 | . . . . 10 Largest Group 10 | . . . . 10 Highest-Rated Group 88 | . . . . 88 Highest-Rated Ally 16 | . . . . 16 Total Orders . | . . . . . Ally Attacks 35 | . . . . 35 Total Damage 354 | . . . . 354 Kills 10 | . . . . 10 Allies Corrupted . | . . . . . Allies Melted . | . . . . . Intel | -11 -10 -10 -9 -9 ------- Run | Scr Mat Min Mat Sto Robot Analysis Total . | . . . . . Derelict Logs Recovered 2 | . . 2 . . Drone Launches . | . . . . . Drone Recoveries . | . . . . . Exploration | -11 -10 -10 -9 -9 ------------- Run | Scr Mat Min Mat Sto Turns Passed 3180 | 5 273 1196 443 1263 Spaces Moved 1738 | 1 164 725 212 636 Core . | . . . . . Treads 778 | . . . 142 636 Legs 960 | 1 164 725 70 . Wheels . | . . . . . Hover . | . . . . . Flight . | . . . . . Fastest Speed 120 | 120 120 150 150 160 Average Speed 153 | 120 142 150 157 160 Slowest Speed 180 | 120 150 150 180 160 Overloaded Moves . | . . . . . Propulsion Burnouts . | . . . . . Robots Hopped . | . . . . . Cave-ins Triggered . | . . . . . Exploration Rate (%) 47 | 2 30 99 27 77 Regions Visited 4 Branch Regions 2 Pre-discovered Areas . | . . . . . Known Exits Taken 2 | . 1 . 1 . Unknown Exits Taken 2 | 1 . 1 . . Scrap Searched 1 | . . 1 . . Spaces Dug . | . . . . . Terrain Destroyed 62 | . . 14 29 19 Melee . | . . . . . Projectile 1 | . . . . 1 AOE 61 | . . 14 29 18 Terrain Rammed . | . . . . . Walls Destroyed . | . . . . . Machines Disabled . | . . . . . Actions | -11 -10 -10 -9 -9 --------- Run | Scr Mat Min Mat Sto Total 2055 | 5 185 807 266 792 Wait 136 | . 5 64 4 63 Move 1734 | . 163 724 211 636 Hop . | . . . . . Pick Up 15 | . 2 3 3 7 Fast Attach 12 | . 3 . 3 6 Attach 14 | . . . 7 7 Detach 5 | . . . 1 4 Swap 12 | 2 . 1 2 7 Drop 16 | 3 2 1 1 9 Fire 109 | . 10 14 34 51 Melee . | . . . . . Ram . | . . . . . Kick . | . . . . . Crush . | . . . . . Escape Stasis . | . . . . . Rewire 2 | . . . . 2 Trap . | . . . . . Miscellaneous . | . . . . . Route ------- -11/Scrapyard -10/Materials (discovered 2 exits: *Min x2) -10/Mines (discovered 2 exits: *Mat x2) -9/Materials (discovered 3 exits: Min / *Sto x2) -9/Storage History --------- Turn | Location | Event 6 | -11/Scrapyard | Discovered new exit (range 0) 6 | -11/Scrapyard | Entered Materials 166 | -10/Materials | Identified exit to Mines 279 | -10/Materials | Entered Mines 302 | -10/Mines | Build established: Mutant 358 | -10/Mines | Discovered new exit (range 10) 403 | -10/Mines | Discovered new exit (range 13) 801 | -10/Mines | A weapon hastily lodged in a ceiling crevice suddenly fell to the ground 1059 | -10/Mines | Received a Rocket Launcher from a helpful Derelict 1475 | -10/Mines | Entered Materials 1475 | -9/Materials | Evolved 2 slots: Propulsion x1, Utility x1 1476 | -9/Materials | Identified exit to Storage 1728 | -9/Materials | Identified exit to Mines 1736 | -9/Materials | Lost 4 parts (1p1n2w) 1918 | -9/Materials | Entered Storage 2072 | -9/Storage | Assisted by bots powering up and referring to "LRC-V3" 2394 | -9/Storage | Build established: Commander-Mutant 2399 | -9/Storage | Repaired EM Shotgun 2541 | -9/Storage | Found Prototype Launcher 2541 | -9/Storage | Identified Scatter Rocket Array 2928 | -9/Storage | Garrison activated, responded to threat 2948 | -9/Storage | Core integrity fell below 50% 3026 | -9/Storage | Destroyed 7 combat bots 3027 | -9/Storage | Lost 3 parts (1n2w) 3152 | -9/Storage | Core integrity fell below 20% 3181 | -9/Storage | Self-destructed Last Messages --------------- 03093_ Destroyed Hover Unit. 03104_ Y-45 Defender destroyed. 03111_ R-06 Scavenger collects Imp. Ion Engine. 03111_ K-01 Serf collects debris. 03114_ R-06 Scavenger collects Heat Sink. 03115_ K-01 Serf collects debris. 03118_ K-01 Serf cleans the Repair Station. 03121_ Connecting with Terminal... >>Trojan(Botnet) Trojan loaded successfully. Testing... Terminal linked with 3 systems. Awaiting botnet instructions. 03123_ K-01 Serf collects debris. 03123_ U-05 Engineer builds a Door. 03144_ ALERT: Hostiles spotted, dispatching reinforcements to Terminal S004. 03145_ Terminal disabled. 03166_ G-34 Mercenary destroyed. 03179_ R-06 Scavenger collects Aluminum Leg. Map ----- +----------------------------------------------------+ | #???# T #????????????#######?? | | #???# " #????????????????????? | | #???# #????????????????????? | | ######???###########????????????????????? | | ????????????????????????????????????????? | | ????????????????????????????????????????? | | ????????????????????????????????????????? | | ????????????????????????????????????????? | | ????????????????????????????????????????? | | ????????????????????????????????????????? | | ????????????????????????????????????????? | | ????????????????????????????????????????? | | ????????????????? ???????????????? | | ??????????????? #??????????????? | | ????????????" +??????????????? | | ???????????? #??????????????? | | ??????????""" #??????????????? | | ?????????? #??????????????? | | ########?? ^ ???????????????? | | #??? #???????????????? | | """"" # ? ^ #???????????????? | | """"" # #???????????????? | | """"" # """" #???????????????? | | # """"""o #???????????????? | | # """"" ######??????????? | | ######## """"" ;@ #??????????? | | % %% % Y! #??????????? | | # r u % ur % #??????????? | | ##%##% % % % ##### #??????????? | | ##"## ####+#####?## ##??????????? | | # # #### #???????????? | | !! # # *= """# #???????????? | | !! # # *= T"# #???????????? | | !! # ^# == """# #???????????? | | + # #### T???????????? | | "" # + """ ##?? #???????????? | | %% |# ##### "R T#??"""???????????? | | % %##+#######%""" ##????????????????? | | [%[ # ## #?????????????????? | | %!! # ###### ####?????????????????? | | ["### #????###????????????????????? | | ###?#""" #??????????????????????????? | | ????#""" ##??????????????????????????? | | ????#""" #???????????????????????????? | | ????# #???????????????????????????? | | ????#########???????????????????????????? | | | | | | | | | +----------------------------------------------------+ Best States ------------- Heat Dissipation 28 Energy Generation 14 Energy Capacity 280 Matter Stores 300 Matter Capacity 300 Sight Range 16 Terrain Scan Density 10 Resistance: KI 20 Resistance: TH 20 Resistance: EX 20 Resistance: EM 20 Resistance: I 20 Resistance: S 20 Resistance: P 20 Evasion (%) 40 Recoil Reduction 3 Offensive Hacking 20 Item Schematics ----------------- None Robot Schematics ------------------ None Fabricated ------------ Nothing Alien Tech Used ----------------- None Achievements -------------- None Challenges ------------ None Game ------ Seed HeartRestorationBroadsword Manual? 0 Play Time 00:20:01 Cumulative 42.2 hours Start 2020.10.03 @ 23:47:45 End 2020.10.04 @ 00:06:48 Sessions 1 Manual Loads 0 Difficulty Adventurer Special Mode None Game No. 67 Rogue 17 Adventurer 50 Explorer 0 Win Type - Total 3 Types 2/0/0/1/0/0/0/0/0 Lore% 43 Gallery% 50 Achievement% 51 Wizard Run 0 Options --------- ASCII 0 Keyboard 0 Movement Mouse Keybinds 0 Fullscreen 1 Font 20/SmallcapsGlow Map View 66x50 Tactical HUD 1 Map Filters NONE Filters NONE Steam 1 RUN: a4a9f0ec-cd5c-4378-ad20-3851cd036d9d